[Event "Titled Tuesday Blitz May 24 Late 2022"]
[White "Tanenbaum, Zachary"]
[Black "Martin Carmona, Gaston Manuel"]
[WhiteFideId "2060850"]
[BlackFideId "22284567"]
[WhiteElo "2168"]
[BlackElo "2162"]
[Result "0-1"]
[Round "03"]
[TimeControl "180+1"]
[Date "2022.05.25"]
[WhiteClock "0:00:59"]
[BlackClock "0:00:53"]

1. e4 {[%clk 0:02:59]}  c5 {[%clk 0:02:59]} 2. Nf3 {[%clk 0:03:00]}  d6 {[%clk 0:02:59]} 3. d4 {[%clk 0:03:01]}  cxd4 {[%clk 0:03:00]} 4. Nxd4 {[%clk 0:03:01]}  Nf6 {[%clk 0:03:01]} 5. Nc3 {[%clk 0:03:02]}  g6 {[%clk 0:03:02]} 6. Be3 {[%clk 0:03:02]}  Nc6 {[%clk 0:03:03]} 7. f3 {[%clk 0:03:00]}  Bg7 {[%clk 0:03:03]} 8. Qd2 {[%clk 0:03:00]}  O-O {[%clk 0:03:04]} 9. g4 {[%clk 0:03:00]}  Nxd4 {[%clk 0:03:04]} 10. Bxd4 {[%clk 0:03:01]}  Be6 {[%clk 0:03:05]} 11. O-O-O {[%clk 0:03:01]}  Qa5 {[%clk 0:03:04]} 12. Kb1 {[%clk 0:03:02]}  Rfc8 {[%clk 0:03:05]} 13. a3 {[%clk 0:03:02]}  Rab8 {[%clk 0:03:05]} 14. Nd5 {[%clk 0:03:02]}  Qxd2 {[%clk 0:03:04]} 15. Rxd2 {[%clk 0:03:03]}  Nxd5 {[%clk 0:02:37]} 16. Bxg7 {[%clk 0:03:04]}  Kxg7 {[%clk 0:02:08]} 17. exd5 {[%clk 0:03:05]}  Bd7 {[%clk 0:02:09]} 18. Bg2 {[%clk 0:02:43]}  g5 {[%clk 0:02:08]} 19. h4 {[%clk 0:02:37]}  h6 {[%clk 0:02:08]} 20. Re2 {[%clk 0:02:33]}  Re8 {[%clk 0:02:03]} 21. Rhe1 {[%clk 0:02:00]}  Kf6 {[%clk 0:02:02]} 22. Bh3 {[%clk 0:01:59]}  e5 {[%clk 0:01:50]} 23. dxe6 {[%clk 0:01:55]}  Rxe6 {[%clk 0:01:50]} 24. f4 {[%clk 0:01:52]}  Rxe2 {[%clk 0:01:41]} 25. Rxe2 {[%clk 0:01:52]}  Re8 {[%clk 0:01:40]} 26. Rf2 {[%clk 0:01:50]}  Re1+ {[%clk 0:01:34]} 27. Ka2 {[%clk 0:01:50]}  Be6+ {[%clk 0:01:35]} 28. b3 {[%clk 0:01:49]}  gxf4 {[%clk 0:01:24]} 29. Rxf4+ {[%clk 0:01:48]}  Ke5 {[%clk 0:01:25]} 30. Rf2 {[%clk 0:01:38]}  Rh1 {[%clk 0:01:23]} 31. Rf3 {[%clk 0:01:33]}  h5 {[%clk 0:01:22]} 32. Rg3 {[%clk 0:01:26]}  Kf4 {[%clk 0:01:00]} 33. Rd3 {[%clk 0:01:09]}  hxg4 {[%clk 0:00:59]} 34. Bg2 {[%clk 0:01:09]}  Rh2 {[%clk 0:00:59]} 35. Bxb7 {[%clk 0:01:07]}  Rxc2+ {[%clk 0:00:57]} 36. Kb1 {[%clk 0:01:07]}  Rc7 {[%clk 0:00:52]} 37. Bg2 {[%clk 0:01:04]}  Bf5 {[%clk 0:00:52]} 38. Bf1 {[%clk 0:00:59]}  Rc3 {[%clk 0:00:51]} 39. Kb2 {[%clk 0:00:59]}  Rxd3 {[%clk 0:00:52]} 40. Bxd3 {[%clk 0:00:59]}  Bxd3 {[%clk 0:00:53]} 0-1


[Site "https://www.chess.com"]

[Event "Titled Tuesday Blitz May 24 Late 2022"]
[White "Terry, Renato"]
[Black "De Souza, Regis Gabetta"]
[WhiteFideId "3803457"]
[BlackFideId "22756930"]
[WhiteElo "2577"]
[BlackElo "1926"]
[Result "0-1"]
[Round "03"]
[TimeControl "180+1"]
[Date "2022.05.24"]
[WhiteClock "0:00:10"]
[BlackClock "0:00:09"]

1. e4 {[%clk 0:03:00]}  e5 {[%clk 0:03:00]} 2. Nf3 {[%clk 0:03:00]}  Nc6 {[%clk 0:03:00]} 3. c3 {[%clk 0:03:01]}  Nf6 {[%clk 0:02:59]} 4. d4 {[%clk 0:03:01]}  exd4 {[%clk 0:02:55]} 5. e5 {[%clk 0:03:01]}  Nd5 {[%clk 0:02:54]} 6. Qb3 {[%clk 0:03:01]}  Nb6 {[%clk 0:02:39]} 7. cxd4 {[%clk 0:03:00]}  d5 {[%clk 0:02:35]} 8. Bb5 {[%clk 0:02:57]}  Bd7 {[%clk 0:02:31]} 9. O-O {[%clk 0:02:51]}  Be7 {[%clk 0:02:29]} 10. Nc3 {[%clk 0:02:49]}  a6 {[%clk 0:02:27]} 11. Bd3 {[%clk 0:02:46]}  Be6 {[%clk 0:02:22]} 12. a3 {[%clk 0:02:39]}  O-O {[%clk 0:02:20]} 13. Qc2 {[%clk 0:02:39]}  h6 {[%clk 0:02:19]} 14. Be3 {[%clk 0:02:32]}  Bg4 {[%clk 0:02:15]} 15. Ne2 {[%clk 0:02:23]}  f6 {[%clk 0:02:06]} 16. Bh7+ {[%clk 0:02:07]}  Kh8 {[%clk 0:02:05]} 17. Nh4 {[%clk 0:02:08]}  Bxe2 {[%clk 0:01:43]} 18. Ng6+ {[%clk 0:01:57]}  Kxh7 {[%clk 0:01:41]} 19. Nxe7+ {[%clk 0:01:40]}  f5 {[%clk 0:01:36]} 20. Nxc6 {[%clk 0:01:41]}  bxc6 {[%clk 0:01:36]} 21. Qxe2 {[%clk 0:01:41]}  f4 {[%clk 0:01:33]} 22. Bd2 {[%clk 0:01:37]}  Nc4 {[%clk 0:01:27]} 23. Bc1 {[%clk 0:01:30]}  f3 {[%clk 0:01:20]} 24. Qd3+ {[%clk 0:01:23]}  Kh8 {[%clk 0:01:20]} 25. g3 {[%clk 0:01:22]}  Qd7 {[%clk 0:01:18]} 26. Rd1 {[%clk 0:01:18]}  Rab8 {[%clk 0:01:03]} 27. b3 {[%clk 0:01:08]}  Rxb3 {[%clk 0:00:55]} 28. Qf1 {[%clk 0:01:05]}  Qf5 {[%clk 0:00:47]} 29. Bd2 {[%clk 0:00:54]}  Rb2 {[%clk 0:00:44]} 30. Bb4 {[%clk 0:00:53]}  Rf7 {[%clk 0:00:40]} 31. Rab1 {[%clk 0:00:51]}  Rxb1 {[%clk 0:00:38]} 32. Rxb1 {[%clk 0:00:51]}  a5 {[%clk 0:00:38]} 33. Bc3 {[%clk 0:00:50]}  Qc2 {[%clk 0:00:36]} 34. Rc1 {[%clk 0:00:50]}  Qf5 {[%clk 0:00:33]} 35. a4 {[%clk 0:00:49]}  Kh7 {[%clk 0:00:32]} 36. h3 {[%clk 0:00:40]}  c5 {[%clk 0:00:27]} 37. dxc5 {[%clk 0:00:39]}  Nxe5 {[%clk 0:00:23]} 38. Bxa5 {[%clk 0:00:39]}  Nd3 {[%clk 0:00:19]} 39. Rc3 {[%clk 0:00:36]}  Ne5 {[%clk 0:00:18]} 40. Rb3 {[%clk 0:00:29]}  c6 {[%clk 0:00:18]} 41. Bc3 {[%clk 0:00:29]}  Nc4 {[%clk 0:00:17]} 42. Qb1 {[%clk 0:00:23]}  Qxb1+ {[%clk 0:00:16]} 43. Rxb1 {[%clk 0:00:24]}  Ra7 {[%clk 0:00:16]} 44. a5 {[%clk 0:00:24]}  d4 {[%clk 0:00:15]} 45. Bxd4 {[%clk 0:00:19]}  Rxa5 {[%clk 0:00:16]} 46. Rc1 {[%clk 0:00:18]}  Nd2 {[%clk 0:00:14]} 47. Be3 {[%clk 0:00:17]}  Ne4 {[%clk 0:00:14]} 48. Rc4 {[%clk 0:00:15]}  Ra1+ {[%clk 0:00:13]} 49. Kh2 {[%clk 0:00:16]}  Nf6 {[%clk 0:00:13]} 50. g4 {[%clk 0:00:13]}  Nd5 {[%clk 0:00:13]} 51. Bd4 {[%clk 0:00:13]}  Rd1 {[%clk 0:00:12]} 52. Kg3 {[%clk 0:00:13]}  Rd3 {[%clk 0:00:12]} 53. Be5 {[%clk 0:00:14]}  Kg6 {[%clk 0:00:11]} 54. h4 {[%clk 0:00:14]}  Kf7 {[%clk 0:00:10]} 55. Ra4 {[%clk 0:00:14]}  g6 {[%clk 0:00:10]} 56. Ra7+ {[%clk 0:00:14]}  Ke6 {[%clk 0:00:10]} 57. Bd6 {[%clk 0:00:14]}  h5 {[%clk 0:00:10]} 58. gxh5 {[%clk 0:00:14]}  gxh5 {[%clk 0:00:11]} 59. Rg7 {[%clk 0:00:11]}  Nf6 {[%clk 0:00:11]} 60. Rg6 {[%clk 0:00:10]}  Kf7 {[%clk 0:00:11]} 61. Rh6 {[%clk 0:00:08]}  Kg7 {[%clk 0:00:11]} 62. Bf4 {[%clk 0:00:08]}  Ne4+ {[%clk 0:00:09]} 63. Kh2 {[%clk 0:00:08]}  Nxf2 {[%clk 0:00:08]} 64. Rd6 {[%clk 0:00:05]}  Ng4+ {[%clk 0:00:07]} 65. Kg3 {[%clk 0:00:06]}  Rxd6 {[%clk 0:00:05]} 66. cxd6 {[%clk 0:00:04]}  f2 {[%clk 0:00:06]} 67. Kg2 {[%clk 0:00:04]}  Kf7 {[%clk 0:00:06]} 68. Bg3 {[%clk 0:00:03]}  Ke6 {[%clk 0:00:06]} 69. Kf1 {[%clk 0:00:03]}  c5 {[%clk 0:00:06]} 70. Ke2 {[%clk 0:00:03]}  c4 {[%clk 0:00:06]} 71. Bxf2 {[%clk 0:00:04]}  Nxf2 {[%clk 0:00:06]} 72. Kxf2 {[%clk 0:00:05]}  Kxd6 {[%clk 0:00:06]} 73. Ke3 {[%clk 0:00:05]}  Ke5 {[%clk 0:00:07]} 74. Kd2 {[%clk 0:00:06]}  Kf4 {[%clk 0:00:07]} 75. Kc3 {[%clk 0:00:07]}  Kg4 {[%clk 0:00:07]} 76. Kxc4 {[%clk 0:00:08]}  Kxh4 {[%clk 0:00:08]} 77. Kd3 {[%clk 0:00:09]}  Kg3 {[%clk 0:00:09]} 78. Ke2 {[%clk 0:00:10]}  Kg2 {[%clk 0:00:09]} 0-1


[Site "https://www.chess.com"]

[Event "Titled Tuesday Blitz May 24 Late 2022"]
[White "Tisaj, Domen"]
[Black "Munoz, Francisco Javier"]
[WhiteFideId "14628708"]
[BlackFideId "128368"]
[WhiteElo "2326"]
[BlackElo "2383"]
[Result "1/2-1/2"]
[Round "03"]
[TimeControl "180+1"]
[Date "2022.05.25"]
[WhiteClock "0:00:11"]
[BlackClock "0:00:20"]

1. d4 {[%clk 0:03:00]}  Nf6 {[%clk 0:02:58]} 2. Nf3 {[%clk 0:02:59]}  e6 {[%clk 0:02:58]} 3. c3 {[%clk 0:02:57]}  c5 {[%clk 0:02:58]} 4. e3 {[%clk 0:02:57]}  d5 {[%clk 0:02:57]} 5. Nbd2 {[%clk 0:02:57]}  Bd6 {[%clk 0:02:58]} 6. Bd3 {[%clk 0:02:57]}  b6 {[%clk 0:02:58]} 7. Qe2 {[%clk 0:02:56]}  Bb7 {[%clk 0:02:58]} 8. e4 {[%clk 0:02:55]}  dxe4 {[%clk 0:02:53]} 9. Nxe4 {[%clk 0:02:55]}  Nxe4 {[%clk 0:02:53]} 10. Bxe4 {[%clk 0:02:55]}  Bxe4 {[%clk 0:02:53]} 11. Qxe4 {[%clk 0:02:55]}  Nd7 {[%clk 0:02:53]} 12. Bg5 {[%clk 0:02:49]}  Qb8 {[%clk 0:02:33]} 13. d5 {[%clk 0:02:30]}  O-O {[%clk 0:02:03]} 14. dxe6 {[%clk 0:02:28]}  Re8 {[%clk 0:02:03]} 15. e7 {[%clk 0:02:20]}  Bxe7 {[%clk 0:02:01]} 16. Bxe7 {[%clk 0:02:17]}  Nf6 {[%clk 0:02:01]} 17. Qe2 {[%clk 0:02:11]}  Qb7 {[%clk 0:02:01]} 18. O-O {[%clk 0:02:08]}  Rxe7 {[%clk 0:02:00]} 19. Qb5 {[%clk 0:02:08]}  Rae8 {[%clk 0:01:52]} 20. a4 {[%clk 0:02:08]}  a6 {[%clk 0:01:38]} 21. Qb3 {[%clk 0:02:07]}  Qc6 {[%clk 0:01:29]} 22. Qc4 {[%clk 0:02:04]}  b5 {[%clk 0:01:24]} 23. axb5 {[%clk 0:02:05]}  axb5 {[%clk 0:01:25]} 24. Qh4 {[%clk 0:02:05]}  Re4 {[%clk 0:01:23]} 25. Qh3 {[%clk 0:02:03]}  g6 {[%clk 0:01:09]} 26. Ra7 {[%clk 0:02:01]}  Rg4 {[%clk 0:01:08]} 27. Rd1 {[%clk 0:01:50]}  h5 {[%clk 0:01:04]} 28. Kh1 {[%clk 0:01:48]}  Nd5 {[%clk 0:01:01]} 29. Ng1 {[%clk 0:01:32]}  Nf4 {[%clk 0:00:45]} 30. Qf3 {[%clk 0:01:32]}  Qxf3 {[%clk 0:00:44]} 31. gxf3 {[%clk 0:01:32]}  Rg5 {[%clk 0:00:44]} 32. Rb7 {[%clk 0:01:32]}  c4 {[%clk 0:00:33]} 33. Rbd7 {[%clk 0:01:25]}  Ree5 {[%clk 0:00:32]} 34. R7d4 {[%clk 0:01:16]}  Rgf5 {[%clk 0:00:32]} 35. Re4 {[%clk 0:01:15]}  Ne6 {[%clk 0:00:31]} 36. Kg2 {[%clk 0:01:08]}  Nc5 {[%clk 0:00:30]} 37. Rd8+ {[%clk 0:01:05]}  Kg7 {[%clk 0:00:30]} 38. Re3 {[%clk 0:01:02]}  Rd5 {[%clk 0:00:24]} 39. Ree8 {[%clk 0:00:51]}  Nd3 {[%clk 0:00:22]} 40. Ne2 {[%clk 0:00:49]}  Nxb2 {[%clk 0:00:21]} 41. Nd4 {[%clk 0:00:50]}  Rg5+ {[%clk 0:00:20]} 42. Kf1 {[%clk 0:00:50]}  Nd1 {[%clk 0:00:18]} 43. Ne2 {[%clk 0:00:35]}  Nb2 {[%clk 0:00:15]} 44. Nd4 {[%clk 0:00:21]}  Na4 {[%clk 0:00:15]} 45. Ne2 {[%clk 0:00:18]}  Rd3 {[%clk 0:00:15]} 46. h4 {[%clk 0:00:13]}  Re5 {[%clk 0:00:14]} 47. Rxe5 {[%clk 0:00:09]}  Rxd8 {[%clk 0:00:14]} 48. Rxb5 {[%clk 0:00:10]}  Rd1+ {[%clk 0:00:14]} 49. Kg2 {[%clk 0:00:10]}  Rd2 {[%clk 0:00:15]} 50. Kf1 {[%clk 0:00:09]}  Rd1+ {[%clk 0:00:14]} 51. Kg2 {[%clk 0:00:09]}  Re1 {[%clk 0:00:15]} 52. Rb4 {[%clk 0:00:05]}  Rxe2 {[%clk 0:00:15]} 53. Rxa4 {[%clk 0:00:06]}  Rc2 {[%clk 0:00:14]} 54. Rxc4 {[%clk 0:00:06]}  Kf6 {[%clk 0:00:14]} 55. Rc8 {[%clk 0:00:07]}  Ke5 {[%clk 0:00:14]} 56. Kg3 {[%clk 0:00:07]}  Kf6 {[%clk 0:00:14]} 57. Rc7 {[%clk 0:00:07]}  Rc1 {[%clk 0:00:15]} 58. c4 {[%clk 0:00:07]}  Rg1+ {[%clk 0:00:15]} 59. Kh2 {[%clk 0:00:07]}  Rc1 {[%clk 0:00:16]} 60. Kg2 {[%clk 0:00:07]}  Rc3 {[%clk 0:00:16]} 61. Rc6+ {[%clk 0:00:06]}  Kg7 {[%clk 0:00:16]} 62. Rc8 {[%clk 0:00:06]}  Rc1 {[%clk 0:00:17]} 63. c5 {[%clk 0:00:06]}  Rc3 {[%clk 0:00:18]} 64. c6 {[%clk 0:00:05]}  Rc4 {[%clk 0:00:19]} 65. Kg3 {[%clk 0:00:05]}  Rc1 {[%clk 0:00:20]} 66. f4 {[%clk 0:00:06]}  Rc3+ {[%clk 0:00:20]} 67. Kg2 {[%clk 0:00:05]}  Rc1 {[%clk 0:00:21]} 68. Kf3 {[%clk 0:00:06]}  Rc2 {[%clk 0:00:21]} 69. c7 {[%clk 0:00:05]}  Rc4 {[%clk 0:00:21]} 70. Ke3 {[%clk 0:00:06]}  Rc1 {[%clk 0:00:21]} 71. f5 {[%clk 0:00:05]}  Rc3+ {[%clk 0:00:19]} 72. Kd4 {[%clk 0:00:05]}  Rc1 {[%clk 0:00:19]} 73. fxg6 {[%clk 0:00:03]}  fxg6 {[%clk 0:00:19]} 74. f4 {[%clk 0:00:03]}  Rd1+ {[%clk 0:00:19]} 75. Ke3 {[%clk 0:00:04]}  Rc1 {[%clk 0:00:20]} 76. f5 {[%clk 0:00:04]}  gxf5 {[%clk 0:00:19]} 77. Kf4 {[%clk 0:00:04]}  Rc5 {[%clk 0:00:20]} 78. Kg5 {[%clk 0:00:04]}  f4+ {[%clk 0:00:20]} 79. Kxf4 {[%clk 0:00:04]}  Rc4+ {[%clk 0:00:21]} 80. Kg5 {[%clk 0:00:05]}  Rc5+ {[%clk 0:00:21]} 81. Kf4 {[%clk 0:00:05]}  Rc4+ {[%clk 0:00:22]} 82. Kf5 {[%clk 0:00:06]}  Rc5+ {[%clk 0:00:22]} 83. Ke6 {[%clk 0:00:07]}  Rc1 {[%clk 0:00:22]} 84. Kd6 {[%clk 0:00:07]}  Rd1+ {[%clk 0:00:23]} 85. Kc5 {[%clk 0:00:08]}  Rc1+ {[%clk 0:00:23]} 86. Kd4 {[%clk 0:00:08]}  Rd1+ {[%clk 0:00:23]} 87. Ke3 {[%clk 0:00:09]}  Re1+ {[%clk 0:00:24]} 88. Kf2 {[%clk 0:00:09]}  Rc1 {[%clk 0:00:24]} 89. Kg3 {[%clk 0:00:10]}  Rg1+ {[%clk 0:00:24]} 90. Kf4 {[%clk 0:00:10]}  Rc1 {[%clk 0:00:25]} 91. Ke5 {[%clk 0:00:10]}  Re1+ {[%clk 0:00:25]} 92. Kf5 {[%clk 0:00:10]}  Rc1 {[%clk 0:00:25]} 93. Re8 {[%clk 0:00:04]}  Rxc7 {[%clk 0:00:22]} 94. Re5 {[%clk 0:00:04]}  Rc1 {[%clk 0:00:20]} 95. Kg5 {[%clk 0:00:05]}  Rf1 {[%clk 0:00:20]} 96. Re7+ {[%clk 0:00:05]}  Kf8 {[%clk 0:00:20]} 97. Rh7 {[%clk 0:00:03]}  Kg8 {[%clk 0:00:20]} 98. Rd7 {[%clk 0:00:03]}  Rb1 {[%clk 0:00:20]} 99. Rd5 {[%clk 0:00:02]}  Rb6 {[%clk 0:00:20]} 100. Kxh5 {[%clk 0:00:02]}  Kg7 {[%clk 0:00:20]} 101. Kg5 {[%clk 0:00:02]}  Rb1 {[%clk 0:00:20]} 102. Rd7+ {[%clk 0:00:03]}  Kg8 {[%clk 0:00:20]} 103. Kg6 {[%clk 0:00:02]}  Rg1+ {[%clk 0:00:20]} 104. Kh6 {[%clk 0:00:03]}  Rh1 {[%clk 0:00:20]} 105. h5 {[%clk 0:00:03]}  Rh2 {[%clk 0:00:20]} 106. Rd8+ {[%clk 0:00:03]}  Kf7 {[%clk 0:00:20]} 107. Rd7+ {[%clk 0:00:04]}  Kf6 {[%clk 0:00:20]} 108. Ra7 {[%clk 0:00:05]}  Rh1 {[%clk 0:00:20]} 109. Ra3 {[%clk 0:00:05]}  Kf7 {[%clk 0:00:20]} 110. Ra8 {[%clk 0:00:04]}  Kf6 {[%clk 0:00:20]} 111. Rf8+ {[%clk 0:00:04]}  Ke7 {[%clk 0:00:20]} 112. Rf2 {[%clk 0:00:05]}  Rg1 {[%clk 0:00:20]} 113. Kh7 {[%clk 0:00:05]}  Rh1 {[%clk 0:00:20]} 114. h6 {[%clk 0:00:06]}  Rg1 {[%clk 0:00:21]} 115. Rf3 {[%clk 0:00:07]}  Rh1 {[%clk 0:00:21]} 116. Rg3 {[%clk 0:00:08]}  Rh2 {[%clk 0:00:22]} 117. Rf3 {[%clk 0:00:08]}  Rh1 {[%clk 0:00:21]} 118. Kg7 {[%clk 0:00:08]}  Rg1+ {[%clk 0:00:21]} 119. Kh8 {[%clk 0:00:08]}  Rh1 {[%clk 0:00:21]} 120. h7 {[%clk 0:00:09]}  Rh2 {[%clk 0:00:22]} 121. Rf1 {[%clk 0:00:09]}  Rh3 {[%clk 0:00:21]} 122. Rf4 {[%clk 0:00:10]}  Rh1 {[%clk 0:00:21]} 123. Rf5 {[%clk 0:00:10]}  Rh2 {[%clk 0:00:21]} 124. Rf1 {[%clk 0:00:10]}  Rh3 {[%clk 0:00:20]} 125. Kg7 {[%clk 0:00:11]}  Rg3+ {[%clk 0:00:20]} 126. Kh8 {[%clk 0:00:11]}  Rh3 {[%clk 0:00:20]} 1/2-1/2


[Site "https://www.chess.com"]

[Event "Titled Tuesday Blitz May 24 Late 2022"]
[White "Tristan, Leonardo"]
[Black "D`Arruda, Ricardo D."]
[WhiteFideId "113816"]
[BlackFideId "100692"]
[WhiteElo "2404"]
[BlackElo "2500"]
[Result "1-0"]
[Round "03"]
[TimeControl "180+1"]
[Date "2022.05.25"]
[WhiteClock "0:00:06"]
[BlackClock "0:00:28"]

1. d4 {[%clk 0:02:11]}  Nf6 {[%clk 0:02:57]} 2. Nf3 {[%clk 0:02:11]}  g6 {[%clk 0:02:55]} 3. Bf4 {[%clk 0:02:12]}  Bg7 {[%clk 0:02:54]} 4. e3 {[%clk 0:02:12]}  d6 {[%clk 0:02:55]} 5. Be2 {[%clk 0:02:12]}  Nbd7 {[%clk 0:02:55]} 6. O-O {[%clk 0:02:12]}  O-O {[%clk 0:02:56]} 7. h3 {[%clk 0:02:13]}  b6 {[%clk 0:02:54]} 8. Bh2 {[%clk 0:02:12]}  Bb7 {[%clk 0:02:54]} 9. a4 {[%clk 0:02:12]}  a5 {[%clk 0:02:53]} 10. Nbd2 {[%clk 0:02:11]}  c5 {[%clk 0:02:52]} 11. c3 {[%clk 0:02:09]}  Qc7 {[%clk 0:02:49]} 12. Bd3 {[%clk 0:02:04]}  Rfe8 {[%clk 0:02:48]} 13. e4 {[%clk 0:02:03]}  cxd4 {[%clk 0:02:43]} 14. cxd4 {[%clk 0:02:03]}  Rac8 {[%clk 0:02:42]} 15. Qe2 {[%clk 0:01:56]}  e5 {[%clk 0:02:35]} 16. d5 {[%clk 0:01:56]}  Nc5 {[%clk 0:02:33]} 17. Bb5 {[%clk 0:01:56]}  Red8 {[%clk 0:02:30]} 18. Rac1 {[%clk 0:01:51]}  Qb8 {[%clk 0:02:30]} 19. Rc3 {[%clk 0:01:38]}  Nh5 {[%clk 0:02:20]} 20. Nc4 {[%clk 0:01:32]}  Nf4 {[%clk 0:02:10]} 21. Bxf4 {[%clk 0:01:15]}  exf4 {[%clk 0:02:11]} 22. Nxb6 {[%clk 0:01:16]}  Rc7 {[%clk 0:02:02]} 23. Rc2 {[%clk 0:01:10]}  Re7 {[%clk 0:02:02]} 24. Rxc5 {[%clk 0:00:45]}  dxc5 {[%clk 0:01:59]} 25. Qc2 {[%clk 0:00:42]}  Bc6 {[%clk 0:01:13]} 26. Bxc6 {[%clk 0:00:35]}  Qxb6 {[%clk 0:01:13]} 27. b3 {[%clk 0:00:36]}  h6 {[%clk 0:01:04]} 28. Nd2 {[%clk 0:00:35]}  Bd4 {[%clk 0:01:00]} 29. Nc4 {[%clk 0:00:35]}  Qb4 {[%clk 0:00:59]} 30. Qd2 {[%clk 0:00:17]}  Qxd2 {[%clk 0:00:56]} 31. Nxd2 {[%clk 0:00:17]}  Rc7 {[%clk 0:00:52]} 32. Bb5 {[%clk 0:00:17]}  Kg7 {[%clk 0:00:48]} 33. Re1 {[%clk 0:00:16]}  f5 {[%clk 0:00:46]} 34. Nc4 {[%clk 0:00:13]}  fxe4 {[%clk 0:00:44]} 35. d6 {[%clk 0:00:13]}  Rf7 {[%clk 0:00:36]} 36. Rxe4 {[%clk 0:00:13]}  g5 {[%clk 0:00:36]} 37. Kf1 {[%clk 0:00:13]}  Kf6 {[%clk 0:00:35]} 38. d7 {[%clk 0:00:10]}  Rfxd7 {[%clk 0:00:34]} 39. Bxd7 {[%clk 0:00:10]}  Rxd7 {[%clk 0:00:35]} 40. Nxa5 {[%clk 0:00:11]}  Bc3 {[%clk 0:00:35]} 41. Nc4 {[%clk 0:00:10]}  Rd1+ {[%clk 0:00:31]} 42. Ke2 {[%clk 0:00:10]}  Rb1 {[%clk 0:00:32]} 43. Kd3 {[%clk 0:00:06]}  Bd4 {[%clk 0:00:32]} 44. Kc2 {[%clk 0:00:06]}  Ra1 {[%clk 0:00:30]} 45. Re2 {[%clk 0:00:06]}  Ra2+ {[%clk 0:00:29]} 46. Kd3 {[%clk 0:00:07]}  Ra1 {[%clk 0:00:29]} 47. Nd2 {[%clk 0:00:07]}  Rd1 {[%clk 0:00:29]} 48. Kc4 {[%clk 0:00:06]}  Rc1+ {[%clk 0:00:28]} 49. Kb5 {[%clk 0:00:06]}  Rc2 {[%clk 0:00:28]} 50. Ne4+ {[%clk 0:00:06]} 1-0


[Site "https://www.chess.com"]

[Event "Titled Tuesday Blitz May 24 Late 2022"]
[White "Turutin, Alexander"]
[Black "Barp, Alberto"]
[WhiteFideId "4180623"]
[BlackFideId "872555"]
[WhiteElo "2402"]
[BlackElo "2229"]
[Result "0-1"]
[Round "03"]
[TimeControl "180+1"]
[Date "2022.05.25"]
[WhiteClock "0:00:05"]
[BlackClock "0:01:04"]

1. e4 {[%clk 0:03:00]}  c6 {[%clk 0:02:54]} 2. d4 {[%clk 0:02:59]}  d5 {[%clk 0:02:55]} 3. e5 {[%clk 0:03:00]}  Bf5 {[%clk 0:02:55]} 4. Nf3 {[%clk 0:03:00]}  e6 {[%clk 0:02:54]} 5. Be2 {[%clk 0:03:01]}  h6 {[%clk 0:02:53]} 6. O-O {[%clk 0:03:00]}  Nd7 {[%clk 0:02:53]} 7. Nbd2 {[%clk 0:02:56]}  c5 {[%clk 0:02:52]} 8. c4 {[%clk 0:02:54]}  Ne7 {[%clk 0:02:51]} 9. Nb3 {[%clk 0:02:37]}  dxc4 {[%clk 0:02:44]} 10. Bxc4 {[%clk 0:02:31]}  cxd4 {[%clk 0:02:22]} 11. Nbxd4 {[%clk 0:02:28]}  a6 {[%clk 0:02:15]} 12. Qb3 {[%clk 0:02:05]}  Nc5 {[%clk 0:02:11]} 13. Qe3 {[%clk 0:01:50]}  Rc8 {[%clk 0:02:09]} 14. Bd2 {[%clk 0:01:14]}  Bg6 {[%clk 0:02:06]} 15. Rfd1 {[%clk 0:01:11]}  Nd5 {[%clk 0:02:06]} 16. Bxd5 {[%clk 0:01:09]}  Qxd5 {[%clk 0:02:06]} 17. Bb4 {[%clk 0:01:02]}  Qe4 {[%clk 0:02:04]} 18. Rac1 {[%clk 0:01:01]}  Qxe3 {[%clk 0:02:02]} 19. fxe3 {[%clk 0:01:02]}  Be7 {[%clk 0:01:54]} 20. Nb3 {[%clk 0:01:02]}  b6 {[%clk 0:01:51]} 21. Bxc5 {[%clk 0:00:51]}  bxc5 {[%clk 0:01:49]} 22. Na5 {[%clk 0:00:50]}  Rc7 {[%clk 0:01:47]} 23. Nd4 {[%clk 0:00:45]}  O-O {[%clk 0:01:41]} 24. Ndc6 {[%clk 0:00:37]}  Bg5 {[%clk 0:01:41]} 25. Kf2 {[%clk 0:00:37]}  Be4 {[%clk 0:01:35]} 26. Rxc5 {[%clk 0:00:36]}  Rfc8 {[%clk 0:01:34]} 27. Rdc1 {[%clk 0:00:36]}  Kf8 {[%clk 0:01:30]} 28. b4 {[%clk 0:00:35]}  Bd5 {[%clk 0:01:25]} 29. a3 {[%clk 0:00:35]}  f6 {[%clk 0:01:14]} 30. exf6 {[%clk 0:00:33]}  Bxf6 {[%clk 0:01:15]} 31. Nd4 {[%clk 0:00:34]}  Rxc5 {[%clk 0:01:11]} 32. bxc5 {[%clk 0:00:34]}  Be7 {[%clk 0:01:10]} 33. c6 {[%clk 0:00:26]}  Bxa3 {[%clk 0:01:11]} 34. Rc2 {[%clk 0:00:22]}  e5 {[%clk 0:01:06]} 35. Nf3 {[%clk 0:00:05]}  Bb4 {[%clk 0:01:04]} 0-1


[Site "https://www.chess.com"]

[Event "Titled Tuesday Blitz May 24 Late 2022"]
[White "Vivas Zamora, Fabian Ernesto"]
[Black "Riff, Vincent"]
[WhiteFideId "3902480"]
[BlackFideId "617776"]
[WhiteElo "1987"]
[BlackElo "2377"]
[Result "0-1"]
[Round "03"]
[TimeControl "180+1"]
[Date "2022.05.25"]
[WhiteClock "0:00:01"]
[BlackClock "0:00:50"]

1. c4 {[%clk 0:03:00]}  e6 {[%clk 0:02:59]} 2. Nf3 {[%clk 0:02:59]}  d5 {[%clk 0:02:51]} 3. b3 {[%clk 0:02:58]}  Nf6 {[%clk 0:02:50]} 4. g3 {[%clk 0:02:58]}  g6 {[%clk 0:02:50]} 5. Bg2 {[%clk 0:02:58]}  Bg7 {[%clk 0:02:51]} 6. Bb2 {[%clk 0:02:59]}  O-O {[%clk 0:02:51]} 7. O-O {[%clk 0:02:59]}  c6 {[%clk 0:02:51]} 8. e3 {[%clk 0:02:50]}  b5 {[%clk 0:02:45]} 9. cxb5 {[%clk 0:02:44]}  cxb5 {[%clk 0:02:45]} 10. Nc3 {[%clk 0:02:43]}  a6 {[%clk 0:02:44]} 11. Ne2 {[%clk 0:02:36]}  Nc6 {[%clk 0:02:42]} 12. Rc1 {[%clk 0:02:34]}  Bb7 {[%clk 0:02:42]} 13. Ned4 {[%clk 0:02:18]}  Nxd4 {[%clk 0:02:42]} 14. Bxd4 {[%clk 0:02:17]}  Rc8 {[%clk 0:02:42]} 15. Rxc8 {[%clk 0:02:10]}  Qxc8 {[%clk 0:02:41]} 16. Qa1 {[%clk 0:02:08]}  Nh5 {[%clk 0:02:39]} 17. Rc1 {[%clk 0:01:58]}  Qd7 {[%clk 0:02:37]} 18. Bxg7 {[%clk 0:01:52]}  Nxg7 {[%clk 0:02:38]} 19. Rc5 {[%clk 0:01:36]}  f6 {[%clk 0:02:32]} 20. Qc3 {[%clk 0:01:32]}  Ne8 {[%clk 0:02:15]} 21. b4 {[%clk 0:01:06]}  e5 {[%clk 0:02:08]} 22. d3 {[%clk 0:00:56]}  Qd6 {[%clk 0:01:37]} 23. Nd2 {[%clk 0:00:52]}  Rf7 {[%clk 0:01:31]} 24. Nb3 {[%clk 0:00:42]}  Rd7 {[%clk 0:01:28]} 25. Na5 {[%clk 0:00:38]}  Kg7 {[%clk 0:01:14]} 26. Nxb7 {[%clk 0:00:33]}  Rxb7 {[%clk 0:01:14]} 27. Rxd5 {[%clk 0:00:32]}  Rc7 {[%clk 0:01:12]} 28. Rc5 {[%clk 0:00:26]}  Rd7 {[%clk 0:01:07]} 29. Rd5 {[%clk 0:00:19]}  Rc7 {[%clk 0:01:04]} 30. Rxd6 {[%clk 0:00:12]}  Rxc3 {[%clk 0:01:04]} 31. Rxa6 {[%clk 0:00:11]}  Rxd3 {[%clk 0:01:03]} 32. Bf1 {[%clk 0:00:11]}  Rd1 {[%clk 0:01:03]} 33. Kg2 {[%clk 0:00:11]}  Nd6 {[%clk 0:01:04]} 34. Be2 {[%clk 0:00:10]}  Rd2 {[%clk 0:01:03]} 35. h3 {[%clk 0:00:08]}  Ne4 {[%clk 0:01:00]} 36. Kf1 {[%clk 0:00:06]}  Nc3 {[%clk 0:00:59]} 37. Bf3 {[%clk 0:00:04]}  e4 {[%clk 0:01:00]} 38. Bh1 {[%clk 0:00:02]}  Rd1+ {[%clk 0:00:58]} 39. Kg2 {[%clk 0:00:03]}  Rd2 {[%clk 0:00:51]} 40. Rc6 {[%clk 0:00:01]}  Nd1 {[%clk 0:00:50]} 0-1


[Site "https://www.chess.com"]